fUSD/lending_fUSD_20260504
["ID","MTS","AMOUNT","RATE_DAILY","PERIOD"]
[421535418,1777832121000,-151.18,0.0001979,2]
[421535421,1777832121000,-11449.31,0.00020145,2]
[421535446,1777832121000,-500.0,0.00020646,2]
[421535437,1777832121000,-582.57313483,0.00020646,2]
[421535447,1777832121000,-500.0,0.00020646,2]
[421535477,1777832121000,-500.0,0.00020646,2]
[421535478,1777832121000,-630.18203924,0.00020646,2]
[421535475,1777832121000,-500.0,0.00020646,2]
[421535476,1777832121000,-500.0,0.00020646,2]
[421535481,1777832121000,-500.0,0.00020646,2]
[421535479,1777832121000,-500.0,0.00020646,2]
[421535480,1777832121000,-500.0,0.00020646,2]
[421535482,1777832121000,-500.0,0.00020646,2]
[421535483,1777832121000,-500.0,0.00020646,2]
[421535485,1777832121000,-500.0,0.00020646,2]
[421535472,1777832121000,-500.0,0.00020646,2]
[421535486,1777832121000,-500.0,0.00020646,2]
[421535488,1777832121000,-500.0,0.00020646,2]
[421535489,1777832121000,-500.0,0.00020646,2]
[421535490,1777832121000,-61688.08059026,0.00020647,2]
[421535491,1777832121000,-1497.0,0.00020647,2]
[421535494,1777832121000,-320.124,0.00020647,2]
[421535492,1777832121000,-2464.07402331,0.00020647,2]
[421535493,1777832121000,-1077.85484221,0.00020647,2]
[421535495,1777832121000,-1191.33537784,0.00020647,2]
[421535450,1777832121000,-500.0,0.00020646,2]
[421535496,1777832121000,-1386.35636678,0.00020647,2]
[421535487,1777832121000,-500.0,0.00020646,2]
[421535470,1777832121000,-500.0,0.00020646,2]
[421535484,1777832121000,-500.0,0.00020646,2]
[421535469,1777832121000,-500.0,0.00020646,2]
[421535451,1777832121000,-500.0,0.00020646,2]
[421535468,1777832121000,-500.0,0.00020646,2]
[421535449,1777832121000,-500.0,0.00020646,2]
[421535448,1777832121000,-425.87628376,0.00020646,2]
[421535453,1777832121000,-500.0,0.00020646,2]
[421535454,1777832121000,-500.0,0.00020646,2]
[421535455,1777832121000,-500.0,0.00020646,2]
[421535456,1777832121000,-500.0,0.00020646,2]
[421535457,1777832121000,-500.0,0.00020646,2]
[421535461,1777832121000,-500.0,0.00020646,2]
[421535460,1777832121000,-500.0,0.00020646,2]
[421535452,1777832121000,-500.0,0.00020646,2]
[421535459,1777832121000,-500.0,0.00020646,2]
[421535463,1777832121000,-500.0,0.00020646,2]
[421535462,1777832121000,-500.0,0.00020646,2]
[421535465,1777832121000,-500.0,0.00020646,2]
[421535466,1777832121000,-500.0,0.00020646,2]
[421535464,1777832121000,-500.0,0.00020646,2]
[421535467,1777832121000,-500.0,0.00020646,2]
[421535473,1777832121000,-500.0,0.00020646,2]
[421535474,1777832121000,-500.0,0.00020646,2]
[421535458,1777832121000,-500.0,0.00020646,2]
[421535471,1777832121000,-500.0,0.00020646,2]
[421535524,1777832122000,-44028.8510244,0.00020847,2]
[421535531,1777832122000,-168.10960843,0.00020873,2]
[421535530,1777832122000,-500.0,0.00020873,2]
[421535528,1777832122000,-501.12537306,0.00020873,2]
[421535523,1777832122000,-566.4106675,0.00020847,2]
[421535526,1777832122000,-471.10592492,0.00020873,2]
[421535527,1777832122000,-500.0,0.00020873,2]
[421535533,1777832122000,-500.0,0.00020873,2]
[421535529,1777832122000,-500.47150084,0.00020873,2]
[421535525,1777832122000,-500.0,0.00020873,2]
[421535532,1777832122000,-205.2510308,0.00020873,2]
[421535541,1777832122000,-1517.79,0.00020951,2]
[421535538,1777832122000,-501.76177234,0.00020873,2]
[421535536,1777832122000,-500.10898502,0.00020873,2]
[421535537,1777832122000,-500.0,0.00020873,2]
[421535540,1777832122000,-644.55,0.00020951,2]
[421535535,1777832122000,-500.0,0.00020873,2]
[421535539,1777832122000,-501.49599921,0.00020873,2]
[421535542,1777832122000,-3006.37,0.00020951,2]
[421535543,1777832122000,-500.0,0.00020987,2]
[421535545,1777832122000,-633.27066016,0.00021421,2]
[421535544,1777832122000,-1000.0,0.00021421,2]
[421535546,1777832122000,-1000.0,0.00021421,2]
[421535534,1777832122000,-500.0,0.00020873,2]
[421535522,1777832122000,-6009.4234341,0.00020847,2]
[421535499,1777832122000,-829.67010334,0.00020647,2]
[421535519,1777832122000,-2019.91513355,0.00020847,2]
[421535547,1777832122000,-720.52172697,0.00021421,2]
[421535498,1777832122000,-48993.48432967,0.00020647,2]
[421535497,1777832122000,-14162.908,0.00020647,2]
[421535500,1777832122000,-380.52932165,0.00020647,2]
[421535503,1777832122000,-1807.85877248,0.00020647,2]
[421535502,1777832122000,-33971.42076965,0.00020647,2]
[421535501,1777832122000,-3750.25431286,0.00020647,2]
[421535504,1777832122000,-358.99680043,0.00020647,2]
[421535505,1777832122000,-1976.09516634,0.00020647,2]
[421535506,1777832122000,-1587.87614288,0.00020647,2]
[421535508,1777832122000,-24798.313,0.00020647,2]
[421535509,1777832122000,-5000.0,0.00020647,2]
[421535507,1777832122000,-543368.7526803,0.00020647,2]
[421535510,1777832122000,-153.81,0.00020657,2]
[421535511,1777832122000,-3165.8963857,0.00020659,2]
[421535513,1777832122000,-268.55149297,0.00020747,2]
[421535514,1777832122000,-33118.4782,0.00020747,2]
[421535512,1777832122000,-898.0246822,0.00020659,2]
[421535516,1777832122000,-217.31690937,0.00020837,2]
[421535515,1777832122000,-2000.0,0.00020747,2]
[421535517,1777832122000,-151.0,0.00020844,2]
[421535520,1777832122000,-72749.38156833,0.00020847,2]
[421535518,1777832122000,-66598.27367799,0.00020847,2]
[421535521,1777832122000,-120961.26675053,0.00020847,2]
[421535553,1777832122000,-151.0,0.00021547,2]
[421535587,1777832122000,-192.011519,0.00022397,14]
[421535554,1777832122000,-242.3514108,0.00021547,2]
[421535579,1777832122000,-1500.0,0.00021968,2]
[421535581,1777832122000,-299.77,0.00021978,2]
[421535578,1777832122000,-1500.0,0.00021968,2]
[421535580,1777832122000,-150.0,0.00021978,2]
[421535583,1777832122000,-1023.40795389,0.00022226,2]
[421535582,1777832122000,-151.18,0.00021989,2]
[421535584,1777832122000,-244.2,0.00022353,2]
[421535586,1777832122000,-176.987288,0.00022397,14]
[421535585,1777832122000,-153.81,0.00022379,2]
[421535589,1777832122000,-301.21,0.00022466,2]
[421535588,1777832122000,-1322.19,0.00022451,2]
[421535592,1777832122000,-1122.91719053,0.00022516,2]
[421535593,1777832122000,-863.80656971,0.00022516,2]
[421535591,1777832122000,-1934.60259387,0.00022516,2]
[421535594,1777832122000,-2000.0,0.00022516,2]
[421535596,1777832122000,-1308.44,0.00022562,2]
[421535598,1777832122000,-162.45035992,0.00022628,2]
[421535597,1777832122000,-2591.69,0.00022562,2]
[421535595,1777832122000,-555.65,0.00022562,2]
[421535599,1777832122000,-3682.25436098,0.00022808,2]
[421535601,1777832122000,-320.0,0.00022904,2]
[421535600,1777832122000,-12095.96564589,0.00022854,2]
[421535548,1777832122000,-1000.0,0.00021421,2]
[421535575,1777832122000,-1500.0,0.00021968,2]
[421535576,1777832122000,-1500.0,0.00021968,2]
[421535590,1777832122000,-280.51458286,0.00022516,2]
[421535574,1777832122000,-225.49665508,0.00021918,10]
[421535550,1777832122000,-1000.0,0.00021421,2]
[421535577,1777832122000,-1500.0,0.00021968,2]
[421535549,1777832122000,-1000.0,0.00021421,2]
[421535551,1777832122000,-151.0,0.0002147,2]
[421535552,1777832122000,-151.0,0.00021547,2]
[421535557,1777832122000,-151.0,0.00021547,2]
[421535555,1777832122000,-151.0,0.00021547,2]
[421535559,1777832122000,-1027.43622372,0.00021549,5]
[421535556,1777832122000,-151.0,0.00021547,2]
[421535562,1777832122000,-500.0,0.00021549,2]
[421535560,1777832122000,-500.0,0.00021549,2]
[421535566,1777832122000,-162.89365812,0.0002155,2]
[421535558,1777832122000,-1027.43622372,0.00021549,5]
[421535564,1777832122000,-500.0,0.00021549,2]
[421535561,1777832122000,-500.0,0.00021549,2]
[421535563,1777832122000,-500.0,0.00021549,2]
[421535565,1777832122000,-589.39638819,0.0002155,2]
[421535569,1777832122000,-375.0,0.000219,2]
[421535567,1777832122000,-160.28998367,0.00021573,2]
[421535568,1777832122000,-486.33,0.0002188,2]
[421535570,1777832122000,-307.5,0.000219,2]
[421535571,1777832122000,-157.87459434,0.00021906,2]
[421535572,1777832122000,-5000.0,0.00021918,2]
[421535573,1777832122000,-334.42012431,0.00021918,10]
[421535643,1777832123000,-151.0,0.00025769,2]
[421535644,1777832123000,-151.0,0.00025769,2]
[421535641,1777832123000,-1412.541263,0.00025769,2]
[421535640,1777832123000,-1412.541263,0.00025769,2]
[421535638,1777832123000,-759.519619,0.00025769,2]
[421535632,1777832123000,-627.508388,0.00025769,2]
[421535639,1777832123000,-1412.541263,0.00025769,2]
[421535636,1777832123000,-759.519619,0.00025769,2]
[421535634,1777832123000,-151.0,0.00025769,2]
[421535635,1777832123000,-759.519619,0.00025769,2]
[421535645,1777832123000,-151.0,0.00025769,2]
[421535637,1777832123000,-759.519619,0.00025769,2]
[421535646,1777832123000,-151.0,0.00025769,2]
[421535656,1777832123000,-151.0,0.00025769,2]
[421535647,1777832123000,-174.837326,0.00025769,2]
[421535648,1777832123000,-174.837326,0.00025769,2]
[421535650,1777832123000,-174.837326,0.00025769,2]
[421535649,1777832123000,-174.837326,0.00025769,2]
[421535654,1777832123000,-151.0,0.00025769,2]
[421535651,1777832123000,-151.0,0.00025769,2]
[421535653,1777832123000,-151.0,0.00025769,2]
[421535652,1777832123000,-151.0,0.00025769,2]
[421535655,1777832123000,-151.0,0.00025769,2]
[421535658,1777832123000,-578.20924308,0.00025825,2]
[421535661,1777832123000,-8547.87455494,0.00025825,2]
[421535633,1777832123000,-627.508388,0.00025769,2]
[421535642,1777832123000,-1412.541263,0.00025769,2]
[421535630,1777832123000,-627.508388,0.00025769,2]
[421535606,1777832123000,-91120.09191505,0.0002376,2]
[421535629,1777832123000,-151.0,0.00025769,2]
[421535660,1777832123000,-670.58624095,0.00025825,2]
[421535602,1777832123000,-1449.05656584,0.00023064,2]
[421535604,1777832123000,-1000.0,0.000232,7]
[421535605,1777832123000,-305.40571,0.00023495,14]
[421535603,1777832123000,-151.0,0.00023197,7]
[421535607,1777832123000,-1023.40795389,0.00023904,2]
[421535609,1777832123000,-486.33,0.00024068,2]
[421535610,1777832123000,-153.81,0.000241,2]
[421535611,1777832123000,-151.18,0.00024187,2]
[421535608,1777832123000,-6478.77,0.00024004,2]
[421535612,1777832123000,-244.2,0.00024324,2]
[421535613,1777832123000,-268.55149293,0.00024347,2]
[421535614,1777832123000,-150.0,0.00024658,2]
[421535617,1777832123000,-185.85,0.00024658,2]
[421535616,1777832123000,-186.94,0.00024658,2]
[421535615,1777832123000,-1000.0,0.00024658,2]
[421535618,1777832123000,-1322.19,0.00024696,2]
[421535619,1777832123000,-648.0,0.00024769,5]
[421535622,1777832123000,-250.0,0.00025205,2]
[421535624,1777832123000,-1491.78956279,0.00025518,2]
[421535620,1777832123000,-3682.25436098,0.00025069,2]
[421535621,1777832123000,-12095.96564589,0.0002515,2]
[421535623,1777832123000,-275.65,0.00025509,2]
[421535625,1777832123000,-350.0,0.00025753,2]
[421535628,1777832123000,-500.0,0.00025769,2]
[421535626,1777832123000,-532.594135,0.00025757,14]
[421535627,1777832123000,-206.28,0.00025765,2]
[421535631,1777832123000,-627.508388,0.00025769,2]
[421535659,1777832123000,-971.13918212,0.00025825,2]
[421535657,1777832123000,-153.81,0.00025822,2]
[421535664,1777832123000,-174.61919141,0.00025825,2]
[421535691,1777832123000,-176.301231,0.00027361,2]
[421535695,1777832123000,-151.0,0.00027361,2]
[421535694,1777832123000,-151.0,0.00027361,2]
[421535693,1777832123000,-151.0,0.00027361,2]
[421535699,1777832123000,-151.0,0.00027397,2]
[421535698,1777832123000,-151.0,0.00027397,2]
[421535700,1777832123000,-245.596073,0.00027397,2]
[421535701,1777832123000,-151.0,0.00027397,2]
[421535705,1777832123000,-151.0,0.00027397,2]
[421535706,1777832123000,-151.0,0.00027397,2]
[421535704,1777832123000,-151.0,0.00027397,2]
[421535702,1777832123000,-151.0,0.00027397,2]
[421535703,1777832123000,-151.0,0.00027397,2]
[421535707,1777832123000,-151.0,0.00027397,2]
[421535708,1777832123000,-843.6,0.00027397,10]
[421535711,1777832123000,-55985.85,0.000274,7]
[421535709,1777832123000,-793.16,0.000274,7]
[421535710,1777832123000,-1589.4,0.000274,7]
[421535712,1777832123000,-162.45035992,0.000274,7]
[421535714,1777832123000,-12095.96564589,0.00027445,2]
[421535716,1777832123000,-268.55149293,0.00027947,2]
[421535715,1777832123000,-239.75,0.00027595,2]
[421535717,1777832123000,-1243.61902762,0.00027951,2]
[421535718,1777832123000,-708.75872585,0.00027981,2]
[421535719,1777832123000,-159.93,0.00028,2]
[421535721,1777832123000,-1243.61902762,0.00028111,2]
[421535662,1777832123000,-691.39774486,0.00025825,2]
[421535696,1777832123000,-151.0,0.00027361,2]
[421535692,1777832123000,-151.0,0.00027361,2]
[421535713,1777832123000,-1243.61902762,0.00027435,2]
[421535697,1777832123000,-151.0,0.00027361,2]
[421535690,1777832123000,-151.0,0.00027361,2]
[421535665,1777832123000,-151.0,0.0002588,2]
[421535663,1777832123000,-151.0,0.00025825,2]
[421535669,1777832123000,-151.18,0.00026386,2]
[421535720,1777832123000,-159.93,0.00028,2]
[421535670,1777832123000,-305.40571,0.00026559,14]
[421535671,1777832123000,-150.99,0.00026591,2]
[421535666,1777832123000,-244.2,0.00026296,2]
[421535668,1777832123000,-181.08010149,0.00026373,2]
[421535673,1777832123000,-999.99,0.00026591,2]
[421535674,1777832123000,-299.99,0.00026591,12]
[421535672,1777832123000,-584.92,0.00026591,5]
[421535675,1777832123000,-2218.88,0.00026591,10]
[421535667,1777832123000,-450.0,0.00026301,2]
[421535678,1777832123000,-9999.99,0.00026591,2]
[421535676,1777832123000,-1596.59,0.00026591,2]
[421535686,1777832123000,-1668.2855239,0.0002719,2]
[421535687,1777832123000,-275.65,0.00027193,2]
[421535689,1777832123000,-3682.25436098,0.0002733,2]
[421535685,1777832123000,-151.21715291,0.00027123,20]
[421535683,1777832123000,-1322.19,0.00026941,2]
[421535688,1777832123000,-257.51663566,0.000273,2]
[421535682,1777832123000,-193.02536535,0.00026921,2]
[421535684,1777832123000,-1500.0,0.000271,7]
[421535680,1777832123000,-151.0,0.00026592,2]
[421535679,1777832123000,-3557.88,0.00026591,20]
[421535677,1777832123000,-1727.22,0.00026591,2]
[421535681,1777832123000,-309.727752,0.00026778,14]
[421535746,1777832124000,-1243.61902762,0.00029023,2]
[421535748,1777832124000,-708.75872585,0.00029052,2]
[421535747,1777832124000,-2000.0,0.00029037,7]
[421535749,1777832124000,-532.594135,0.00029117,14]
[421535750,1777832124000,-2000.0,0.00029137,7]
[421535756,1777832124000,-2000.0,0.00029537,7]
[421535751,1777832124000,-2000.0,0.00029237,7]
[421535757,1777832124000,-3682.25436098,0.00029591,2]
[421535752,1777832124000,-2000.0,0.00029337,7]
[421535755,1777832124000,-2000.0,0.00029537,7]
[421535762,1777832124000,-200.0,0.00029664,2]
[421535754,1777832124000,-2000.0,0.00029437,7]
[421535759,1777832124000,-2000.0,0.00029637,7]
[421535760,1777832124000,-2000.0,0.00029664,2]
[421535758,1777832124000,-2000.0,0.00029637,7]
[421535761,1777832124000,-200.0,0.00029664,2]
[421535765,1777832124000,-12095.96564589,0.00029741,2]
[421535767,1777832124000,-2000.0,0.00029837,7]
[421535742,1777832124000,-231.78108002,0.00028904,2]
[421535764,1777832124000,-2000.0,0.00029737,7]
[421535753,1777832124000,-2000.0,0.00029437,7]
[421535740,1777832124000,-193.92,0.00028767,2]
[421535730,1777832124000,-150.0,0.00028553,7]
[421535744,1777832124000,-793.16,0.00029,7]
[421535763,1777832124000,-2000.0,0.00029737,7]
[421535722,1777832124000,-1243.61902762,0.0002813,2]
[421535723,1777832124000,-162.45035992,0.000282,7]
[421535725,1777832124000,-244.2,0.00028267,2]
[421535726,1777832124000,-1243.61902762,0.00028464,2]
[421535724,1777832124000,-1243.61902762,0.00028267,2]
[421535727,1777832124000,-150.0,0.00028553,7]
[421535732,1777832124000,-695.39793187,0.00028564,2]
[421535729,1777832124000,-150.0,0.00028553,7]
[421535745,1777832124000,-1589.4,0.00029,7]
[421535728,1777832124000,-240.30270347,0.00028553,7]
[421535733,1777832124000,-1243.61902762,0.00028566,2]
[421535734,1777832124000,-247.8,0.00028633,2]
[421535735,1777832124000,-249.25,0.00028634,2]
[421535737,1777832124000,-1243.61902762,0.00028692,2]
[421535736,1777832124000,-1243.61902762,0.00028671,2]
[421535738,1777832124000,-55985.85,0.000287,7]
[421535739,1777832124000,-2000.0,0.00028737,7]
[421535743,1777832124000,-2000.0,0.00028937,7]
[421535741,1777832124000,-2000.0,0.00028837,7]
[421535731,1777832124000,-391.80111185,0.00028564,2]
[421535766,1777832124000,-718.62461332,0.00029812,7]
[421535769,1777832124000,-549.06168683,0.00029837,7]
[421535804,1777832124000,-228.74027,0.000299,7]
[421535795,1777832124000,-151.0,0.000299,7]
[421535794,1777832124000,-151.0,0.000299,7]
[421535797,1777832124000,-174.837326,0.000299,7]
[421535796,1777832124000,-174.837326,0.000299,7]
[421535799,1777832124000,-174.837326,0.000299,7]
[421535801,1777832124000,-151.0,0.000299,7]
[421535800,1777832124000,-151.0,0.000299,7]
[421535802,1777832124000,-189.203917,0.000299,7]
[421535805,1777832124000,-151.0,0.000299,7]
[421535793,1777832124000,-151.0,0.000299,7]
[421535803,1777832124000,-151.0,0.000299,7]
[421535808,1777832124000,-151.0,0.000299,7]
[421535806,1777832124000,-151.0,0.000299,7]
[421535810,1777832124000,-2000.0,0.00029937,7]
[421535809,1777832124000,-2000.0,0.00029937,7]
[421535811,1777832124000,-1846.10979876,0.00029937,7]
[421535812,1777832124000,-153.89020124,0.00029937,7]
[421535813,1777832124000,-390.31378116,0.00029952,2]
[421535814,1777832124000,-969.6178571,0.00029952,2]
[421535768,1777832124000,-1421.85913938,0.00029837,7]
[421535807,1777832124000,-151.0,0.000299,7]
[421535792,1777832124000,-1412.541263,0.000299,7]
[421535798,1777832124000,-174.837326,0.000299,7]
[421535789,1777832124000,-151.0,0.000299,7]
[421535770,1777832124000,-29.07917379,0.00029837,7]
[421535771,1777832124000,-364.43658283,0.00029837,7]
[421535776,1777832124000,-151.0,0.000299,7]
[421535778,1777832124000,-627.508388,0.000299,7]
[421535774,1777832124000,-142.46963028,0.0002986,7]
[421535791,1777832124000,-1412.541263,0.000299,7]
[421535772,1777832124000,-390.7066892,0.00029837,7]
[421535777,1777832124000,-151.0,0.000299,7]
[421535775,1777832124000,-55985.85,0.000299,7]
[421535781,1777832124000,-627.508388,0.000299,7]
[421535773,1777832124000,-7.53036972,0.0002986,7]
[421535780,1777832124000,-627.508388,0.000299,7]
[421535784,1777832124000,-759.519619,0.000299,7]
[421535783,1777832124000,-759.519619,0.000299,7]
[421535782,1777832124000,-151.0,0.000299,7]
[421535786,1777832124000,-759.519619,0.000299,7]
[421535785,1777832124000,-759.519619,0.000299,7]
[421535787,1777832124000,-151.0,0.000299,7]
[421535788,1777832124000,-1412.541263,0.000299,7]
[421535779,1777832124000,-627.508388,0.000299,7]
[421535790,1777832124000,-1412.541263,0.000299,7]
[421535845,1777832125000,-2000.0,0.000311,7]
[421535857,1777832125000,-151.0,0.000312,7]
[421535854,1777832125000,-151.0,0.000312,7]
[421535853,1777832125000,-151.0,0.000312,7]
[421535852,1777832125000,-151.0,0.000312,7]
[421535851,1777832125000,-1589.4,0.000312,7]
[421535847,1777832125000,-150.0,0.00031188,2]
[421535850,1777832125000,-793.16,0.000312,7]
[421535848,1777832125000,-150.0,0.00031188,2]
[421535844,1777832125000,-241.131763,0.000311,7]
[421535860,1777832125000,-152.0,0.00031214,30]
[421535849,1777832125000,-270.0,0.00031188,2]
[421535856,1777832125000,-151.0,0.000312,7]
[421535870,1777832125000,-253.6811114,0.00031726,7]
[421535861,1777832125000,-158.0,0.00031214,30]
[421535859,1777832125000,-151.0,0.000312,7]
[421535855,1777832125000,-151.0,0.000312,7]
[421535858,1777832125000,-151.0,0.000312,7]
[421535864,1777832125000,-240.18682742,0.00031303,2]
[421535865,1777832125000,-268.55149293,0.00031547,2]
[421535863,1777832125000,-162.0,0.00031223,30]
[421535867,1777832125000,-150.0,0.00031593,2]
[421535866,1777832125000,-284.0,0.00031593,2]
[421535868,1777832125000,-236.0,0.00031593,2]
[421535869,1777832125000,-55985.85,0.000317,7]
[421535842,1777832125000,-200.0,0.00030716,3]
[421535862,1777832125000,-152.0,0.00031214,30]
[421535846,1777832125000,-150.0,0.00031188,2]
[421535819,1777832125000,-374.82910335,0.0003,10]
[421535840,1777832125000,-200.0,0.00030563,2]
[421535815,1777832125000,-1336.03503318,0.00029961,2]
[421535816,1777832125000,-200.0,0.00029961,2]
[421535818,1777832125000,-1620.28922693,0.0003,10]
[421535817,1777832125000,-200.0,0.00029961,2]
[421535820,1777832125000,-2000.0,0.00030037,7]
[421535821,1777832125000,-2000.0,0.00030037,7]
[421535826,1777832125000,-150.0,0.00030237,30]
[421535822,1777832125000,-2000.0,0.00030037,7]
[421535824,1777832125000,-150.0,0.00030237,30]
[421535823,1777832125000,-151.0,0.00030137,7]
[421535825,1777832125000,-150.0,0.00030237,30]
[421535828,1777832125000,-150.0,0.00030237,7]
[421535827,1777832125000,-214.87497428,0.00030237,30]
[421535829,1777832125000,-372.2448161,0.00030239,2]
[421535831,1777832125000,-1359.93163826,0.00030245,2]
[421535830,1777832125000,-244.2,0.00030239,2]
[421535833,1777832125000,-200.0,0.0003026,2]
[421535832,1777832125000,-200.0,0.0003026,2]
[421535838,1777832125000,-1359.93163826,0.00030297,2]
[421535834,1777832125000,-1359.93163826,0.00030269,2]
[421535835,1777832125000,-309.727752,0.0003027,14]
[421535836,1777832125000,-1359.93163826,0.00030274,2]
[421535837,1777832125000,-1359.93163826,0.00030284,2]
[421535839,1777832125000,-1359.93163826,0.00030395,2]
[421535841,1777832125000,-3127.0,0.000307,2]
[421535843,1777832125000,-200.0,0.00030868,2]
[421535871,1777832125000,-180.0,0.00031726,7]
[421535919,1777832125000,-759.519619,0.000332,7]
[421535873,1777832125000,-3682.25436098,0.00031853,2]
[421535904,1777832125000,-334.363504,0.00032877,7]
[421535902,1777832125000,-334.363504,0.00032877,7]
[421535906,1777832125000,-554.0,0.00032887,30]
[421535907,1777832125000,-1589.4,0.000329,30]
[421535909,1777832125000,-793.16,0.000331,30]
[421535908,1777832125000,-1831.98612652,0.00032983,5]
[421535910,1777832125000,-314.0,0.000331,2]
[421535912,1777832125000,-1000.0,0.000331,2]
[421535911,1777832125000,-922.0,0.000331,2]
[421535914,1777832125000,-151.0,0.000332,7]
[421535915,1777832125000,-151.0,0.000332,7]
[421535916,1777832125000,-151.0,0.000332,7]
[421535918,1777832125000,-759.519619,0.000332,7]
[421535917,1777832125000,-153.124418,0.000332,7]
[421535922,1777832125000,-151.0,0.000332,7]
[421535920,1777832125000,-759.519619,0.000332,7]
[421535921,1777832125000,-759.519619,0.000332,7]
[421535924,1777832125000,-151.0,0.000332,7]
[421535923,1777832125000,-1412.541263,0.000332,7]
[421535926,1777832125000,-151.0,0.000332,7]
[421535925,1777832125000,-1412.541263,0.000332,7]
[421535927,1777832125000,-1412.541263,0.000332,7]
[421535928,1777832125000,-1412.541263,0.000332,7]
[421535872,1777832125000,-151.0,0.00031749,7]
[421535929,1777832125000,-151.0,0.000332,7]
[421535905,1777832125000,-537.0,0.00032887,30]
[421535903,1777832125000,-334.363504,0.00032877,7]
[421535913,1777832125000,-55985.85,0.000332,7]
[421535901,1777832125000,-334.363504,0.00032877,7]
[421535874,1777832125000,-160.0,0.00031867,60]
[421535899,1777832125000,-334.363504,0.00032877,7]
[421535875,1777832125000,-500.0,0.00031867,60]
[421535877,1777832125000,-260.40812166,0.00032,120]
[421535879,1777832125000,-244.2,0.0003221,5]
[421535878,1777832125000,-12095.96564589,0.00032036,2]
[421535880,1777832125000,-152.0,0.00032214,30]
[421535881,1777832125000,-555.0,0.00032227,30]
[421535882,1777832125000,-347.0,0.0003224,2]
[421535885,1777832125000,-150.0,0.00032589,2]
[421535883,1777832125000,-654.0,0.00032408,5]
[421535886,1777832125000,-150.0,0.00032589,2]
[421535884,1777832125000,-672.0,0.00032408,5]
[421535876,1777832125000,-683.8115499,0.00031867,60]
[421535887,1777832125000,-150.0,0.00032589,2]
[421535900,1777832125000,-334.363504,0.00032877,7]
[421535888,1777832125000,-150.0,0.00032589,2]
[421535896,1777832125000,-151.0,0.00032877,7]
[421535895,1777832125000,-151.0,0.00032877,7]
[421535898,1777832125000,-334.363504,0.00032877,7]
[421535894,1777832125000,-151.0,0.00032877,7]
[421535897,1777832125000,-334.363504,0.00032877,7]
[421535890,1777832125000,-250.0,0.00032589,2]
[421535892,1777832125000,-151.0,0.00032877,7]
[421535891,1777832125000,-151.0,0.00032877,7]
[421535889,1777832125000,-150.0,0.00032589,2]
[421535893,1777832125000,-181.506747,0.00032877,7]
[421535969,1777832126000,-600.0,0.00033303,2]
[421535965,1777832126000,-600.0,0.00033303,2]
[421535960,1777832126000,-416.0,0.00033287,2]
[421535962,1777832126000,-600.0,0.00033303,2]
[421535967,1777832126000,-600.0,0.00033303,2]
[421535964,1777832126000,-600.0,0.00033303,2]
[421535966,1777832126000,-600.0,0.00033303,2]
[421535963,1777832126000,-600.0,0.00033303,2]
[421535961,1777832126000,-600.0,0.00033303,2]
[421535971,1777832126000,-151.0,0.00033342,7]
[421535968,1777832126000,-600.0,0.00033303,2]
[421535970,1777832126000,-264.0,0.00033303,2]
[421535977,1777832126000,-250.0,0.00033952,2]